[Event "Early-Titled-Tuesday-Blitz-July-09-2024"]
[Site "Chess.com"]
[Date "2024.07.09"]
[Round "8"]
[White "kuchma777"]
[Black "brm72"]
[Result "1-0"]
[WhiteElo "2493"]
[BlackElo "2651"]
[TimeControl "180+1"]
[EndTime "9:30:24 PDT"]
[Termination "kuchma777 won on time"]

1. e4 {[%clk 0:02:55.2]} 1... c5 {[%clk 0:02:56.9]} 2. Nf3 {[%clk 0:02:55.1]}
2... d6 {[%clk 0:02:55.2]} 3. d4 {[%clk 0:02:53.8]} 3... cxd4 {[%clk 0:02:54.5]}
4. Nxd4 {[%clk 0:02:54.7]} 4... Nf6 {[%clk 0:02:54.3]} 5. Nc3 {[%clk 0:02:54.7]}
5... a6 {[%clk 0:02:54.6]} 6. h3 {[%clk 0:02:53.8]} 6... h5 {[%clk 0:02:52.8]}
7. g3 {[%clk 0:02:47.9]} 7... e5 {[%clk 0:02:51.4]} 8. Nde2 {[%clk 0:02:48.2]}
8... Be7 {[%clk 0:02:46]} 9. Bg2 {[%clk 0:02:48.3]} 9... b5 {[%clk 0:02:44.2]}
10. Be3 {[%clk 0:02:46.8]} 10... Bb7 {[%clk 0:02:33]} 11. O-O {[%clk 0:02:41]}
11... Nbd7 {[%clk 0:02:30.1]} 12. Qd2 {[%clk 0:02:17.6]} 12... Rc8 {[%clk
0:02:27]} 13. Rad1 {[%clk 0:01:58.7]} 13... O-O {[%clk 0:02:24.3]} 14. Nd5
{[%clk 0:01:45.6]} 14... Bxd5 {[%clk 0:02:19.7]} 15. exd5 {[%clk 0:01:46.5]}
15... Qc7 {[%clk 0:02:03.9]} 16. c3 {[%clk 0:01:34.6]} 16... Qb7 {[%clk
0:01:52.7]} 17. Nc1 {[%clk 0:01:29.7]} 17... Bd8 {[%clk 0:01:51.1]} 18. Qe2
{[%clk 0:01:20.6]} 18... Bb6 {[%clk 0:01:48.8]} 19. Bg5 {[%clk 0:01:21.1]} 19...
Rfe8 {[%clk 0:01:39.4]} 20. Nb3 {[%clk 0:01:18.8]} 20... Qc7 {[%clk 0:01:35.4]}
21. Nd2 {[%clk 0:01:17.7]} 21... g6 {[%clk 0:01:26.3]} 22. Kh2 {[%clk
0:01:11.7]} 22... Nh7 {[%clk 0:01:25.7]} 23. Be3 {[%clk 0:01:10.1]} 23... f5
{[%clk 0:01:11.1]} 24. Bh6 {[%clk 0:00:45.7]} 24... Nhf6 {[%clk 0:01:06.1]} 25.
Nf3 {[%clk 0:00:43.8]} 25... Nh7 {[%clk 0:00:55.3]} 26. Nh4 {[%clk 0:00:38.5]}
26... Kf7 {[%clk 0:00:53.9]} 27. Nxf5 {[%clk 0:00:38.9]} 27... gxf5 {[%clk
0:00:42.5]} 28. Qxh5+ {[%clk 0:00:38.7]} 28... Ke7 {[%clk 0:00:41.1]} 29. Qxf5
{[%clk 0:00:34.1]} 29... Ndf6 {[%clk 0:00:40.4]} 30. f4 {[%clk 0:00:23.1]} 30...
Qd7 {[%clk 0:00:34]} 31. Qc2 {[%clk 0:00:22.5]} 31... exf4 {[%clk 0:00:25.7]}
32. Rxf4 {[%clk 0:00:23.4]} 32... Kd8 {[%clk 0:00:23.2]} 33. Rdf1 {[%clk
0:00:17.9]} 33... Qe7 {[%clk 0:00:14.1]} 34. Qf5 {[%clk 0:00:07.9]} 34... Be3
{[%clk 0:00:10.4]} 35. Rh4 {[%clk 0:00:07.4]} 35... Bb6 {[%clk 0:00:06.5]} 36.
Bf4 {[%clk 0:00:05.4]} 36... Kc7 {[%clk 0:00:05.5]} 37. Rh6 {[%clk 0:00:05]}
37... Rf8 {[%clk 0:00:05.1]} 38. c4 {[%clk 0:00:04.1]} 38... bxc4 {[%clk
0:00:04.8]} 39. Rc1 {[%clk 0:00:04.4]} 39... Bc5 {[%clk 0:00:04.7]} 40. Rxc4
{[%clk 0:00:04.4]} 40... Kb7 {[%clk 0:00:05.3]} 41. Rc3 {[%clk 0:00:03.8]} 41...
a5 {[%clk 0:00:05]} 42. Rb3+ {[%clk 0:00:04.1]} 42... Ka7 {[%clk 0:00:05.7]} 43.
Qd3 {[%clk 0:00:04.5]} 43... Rb8 {[%clk 0:00:05.1]} 44. Qc4 {[%clk 0:00:04.7]}
44... Rxb3 {[%clk 0:00:04.8]} 45. Qxb3 {[%clk 0:00:04.9]} 45... Rb8 {[%clk
0:00:05.5]} 46. Qa4 {[%clk 0:00:05.3]} 46... Bb4 {[%clk 0:00:05.4]} 47. a3
{[%clk 0:00:05.1]} 47... Be1 {[%clk 0:00:04.9]} 48. b4 {[%clk 0:00:04.8]} 48...
Qc7 {[%clk 0:00:02.6]} 49. Be3+ {[%clk 0:00:04.1]} 49... Ka8 {[%clk 0:00:02.3]}
50. b5 {[%clk 0:00:03.3]} 1-0

[Event "Early-Titled-Tuesday-Blitz-July-09-2024"]
[Site "Chess.com"]
[Date "2024.07.09"]
[Round "8"]
[White "JoJoZP"]
[Black "gpsji27"]
[Result "0-1"]
[WhiteElo "2486"]
[BlackElo "2365"]
[TimeControl "180+1"]
[EndTime "9:30:27 PDT"]
[Termination "gpsji27 won on time"]

1. d4 {[%clk 0:03:00.9]} 1... d5 {[%clk 0:02:57.7]} 2. c4 {[%clk 0:02:59.2]}
2... e6 {[%clk 0:02:56.7]} 3. Nf3 {[%clk 0:02:57.6]} 3... Nf6 {[%clk 0:02:56.4]}
4. g3 {[%clk 0:02:57.6]} 4... Be7 {[%clk 0:02:55.6]} 5. Bg2 {[%clk 0:02:58.1]}
5... O-O {[%clk 0:02:39.5]} 6. Nc3 {[%clk 0:02:57.3]} 6... c5 {[%clk 0:02:33.6]}
7. cxd5 {[%clk 0:02:54.8]} 7... exd5 {[%clk 0:02:22.3]} 8. O-O {[%clk 0:02:54]}
8... cxd4 {[%clk 0:02:06.4]} 9. Nxd4 {[%clk 0:02:53.4]} 9... Nc6 {[%clk
0:02:04.8]} 10. Bg5 {[%clk 0:02:50.8]} 10... Be6 {[%clk 0:02:01.4]} 11. Rc1
{[%clk 0:02:46.9]} 11... Rc8 {[%clk 0:02:00.1]} 12. Nxe6 {[%clk 0:02:39.1]}
12... fxe6 {[%clk 0:01:59.6]} 13. Bh3 {[%clk 0:02:39.7]} 13... Qd7 {[%clk
0:01:53.9]} 14. e4 {[%clk 0:02:37.7]} 14... d4 {[%clk 0:01:51.1]} 15. Qb3 {[%clk
0:02:37.4]} 15... Kf7 {[%clk 0:01:37.8]} 16. Nd5 {[%clk 0:02:04.5]} 16... Nxe4
{[%clk 0:01:20.8]} 17. Bxe7 {[%clk 0:01:47.7]} 17... Nxe7 {[%clk 0:01:11.6]} 18.
Qf3+ {[%clk 0:01:33]} 18... Nf6 {[%clk 0:01:07.4]} 19. Nf4 {[%clk 0:01:28.9]}
19... Nf5 {[%clk 0:01:01.9]} 20. Rxc8 {[%clk 0:01:16]} 20... Qxc8 {[%clk
0:00:59.2]} 21. Nxe6 {[%clk 0:01:04.5]} 21... Qxe6 {[%clk 0:00:56.6]} 22. Bxf5
{[%clk 0:01:03.3]} 22... Qc6 {[%clk 0:00:55.5]} 23. Qb3+ {[%clk 0:01:01]} 23...
Qd5 {[%clk 0:00:50.7]} 24. Qd3 {[%clk 0:00:56.8]} 24... g6 {[%clk 0:00:43.8]}
25. Bh3 {[%clk 0:00:53.5]} 25... Re8 {[%clk 0:00:40.3]} 26. Bg2 {[%clk
0:00:51.8]} 26... Qd7 {[%clk 0:00:32.9]} 27. Rd1 {[%clk 0:00:49.9]} 27... Kg7
{[%clk 0:00:15.4]} 28. h3 {[%clk 0:00:45.6]} 28... Qa4 {[%clk 0:00:15.2]} 29.
Bxb7 {[%clk 0:00:39.6]} 29... Qxa2 {[%clk 0:00:12.2]} 30. Qxd4 {[%clk
0:00:38.4]} 30... Qb3 {[%clk 0:00:11.9]} 31. Bg2 {[%clk 0:00:26.5]} 31... Re7
{[%clk 0:00:10.4]} 32. Kh2 {[%clk 0:00:24]} 32... Rd7 {[%clk 0:00:09]} 33. Qxd7+
{[%clk 0:00:18.6]} 33... Nxd7 {[%clk 0:00:09.9]} 34. Rxd7+ {[%clk 0:00:18.7]}
34... Kh6 {[%clk 0:00:07.8]} 35. Rb7 {[%clk 0:00:14.1]} 35... Qa4 {[%clk
0:00:06.3]} 36. h4 {[%clk 0:00:13.6]} 36... a5 {[%clk 0:00:06.2]} 37. Bf3 {[%clk
0:00:12.5]} 37... Qc2 {[%clk 0:00:06.3]} 38. Kg2 {[%clk 0:00:13]} 38... a4
{[%clk 0:00:06.1]} 39. g4 {[%clk 0:00:08.7]} 39... g5 {[%clk 0:00:04]} 40. Rb6+
{[%clk 0:00:07.9]} 40... Kg7 {[%clk 0:00:04.6]} 41. hxg5 {[%clk 0:00:07.8]}
41... Qc5 {[%clk 0:00:05.3]} 42. Rb7+ {[%clk 0:00:06.7]} 42... Kg6 {[%clk
0:00:05.9]} 43. Be4+ {[%clk 0:00:03]} 43... Kxg5 {[%clk 0:00:06.2]} 44. Rxh7
{[%clk 0:00:02.9]} 44... Qd4 {[%clk 0:00:06]} 45. Bf3 {[%clk 0:00:02.5]} 45...
Qxb2 {[%clk 0:00:06.2]} 46. Rh5+ {[%clk 0:00:02.4]} 46... Kg6 {[%clk 0:00:06.5]}
47. Rf5 {[%clk 0:00:03]} 47... a3 {[%clk 0:00:06.7]} 48. Be4 {[%clk 0:00:02.3]}
48... Kg7 {[%clk 0:00:06.6]} 49. Rg5+ {[%clk 0:00:01.4]} 49... Kf7 {[%clk
0:00:07.1]} 50. Rf5+ {[%clk 0:00:01.9]} 50... Ke7 {[%clk 0:00:07.4]} 51. Ra5
{[%clk 0:00:01.1]} 51... a2 {[%clk 0:00:07.6]} 52. Ra7+ {[%clk 0:00:01.3]} 52...
Kd6 {[%clk 0:00:07.9]} 53. Ra6+ {[%clk 0:00:01.9]} 53... Ke5 {[%clk 0:00:08.3]}
0-1

[Event "Early-Titled-Tuesday-Blitz-July-09-2024"]
[Site "Chess.com"]
[Date "2024.07.09"]
[Round "8"]
[White "JavierRuizVazquez"]
[Black "FollowRivers"]
[Result "1-0"]
[WhiteElo "2403"]
[BlackElo "2505"]
[TimeControl "180+1"]
[EndTime "9:30:28 PDT"]
[Termination "JavierRuizVazquez won on time"]

1. e4 {[%clk 0:03:00.9]} 1... c5 {[%clk 0:02:59.7]} 2. Nc3 {[%clk 0:02:55.2]}
2... d6 {[%clk 0:02:55.3]} 3. d4 {[%clk 0:02:53]} 3... cxd4 {[%clk 0:02:52.6]}
4. Qxd4 {[%clk 0:02:53.9]} 4... Nf6 {[%clk 0:02:49.7]} 5. b3 {[%clk 0:02:50.3]}
5... g6 {[%clk 0:02:43.5]} 6. Bb2 {[%clk 0:02:48.6]} 6... Bg7 {[%clk 0:02:38.3]}
7. O-O-O {[%clk 0:02:46.4]} 7... Nc6 {[%clk 0:02:30.7]} 8. Bb5 {[%clk
0:02:44.3]} 8... O-O {[%clk 0:02:20.8]} 9. Bxc6 {[%clk 0:02:41.2]} 9... bxc6
{[%clk 0:02:20.5]} 10. Kb1 {[%clk 0:02:36.7]} 10... Bb7 {[%clk 0:02:16.7]} 11.
f3 {[%clk 0:02:33.8]} 11... c5 {[%clk 0:02:14.5]} 12. Qd2 {[%clk 0:02:31.8]}
12... Qc7 {[%clk 0:02:08.1]} 13. g4 {[%clk 0:02:27.6]} 13... a5 {[%clk
0:01:59.3]} 14. h4 {[%clk 0:02:27]} 14... c4 {[%clk 0:01:57.9]} 15. h5 {[%clk
0:02:09.7]} 15... cxb3 {[%clk 0:01:55.3]} 16. cxb3 {[%clk 0:01:56.5]} 16... a4
{[%clk 0:01:54.4]} 17. Nxa4 {[%clk 0:01:51.5]} 17... Nxe4 {[%clk 0:01:49.6]} 18.
Qe3 {[%clk 0:00:48.9]} 18... Rfc8 {[%clk 0:01:30.5]} 19. Rh2 {[%clk 0:00:44.5]}
19... Bxb2 {[%clk 0:00:57.4]} 20. Kxb2 {[%clk 0:00:34.9]} 20... Rxa4 {[%clk
0:00:42.6]} 21. bxa4 {[%clk 0:00:24.2]} 21... Nc3 {[%clk 0:00:41.1]} 22. Re1
{[%clk 0:00:16.4]} 22... Nxa4+ {[%clk 0:00:38.1]} 23. Ka1 {[%clk 0:00:14.6]}
23... Bd5 {[%clk 0:00:25.7]} 24. hxg6 {[%clk 0:00:14]} 24... fxg6 {[%clk
0:00:23.4]} 25. Qd3 {[%clk 0:00:07.8]} 25... Bf7 {[%clk 0:00:13.6]} 26. Qa3
{[%clk 0:00:07.1]} 26... Qc4 {[%clk 0:00:10.3]} 27. Rd2 {[%clk 0:00:04.4]} 27...
Nc3 {[%clk 0:00:08.8]} 28. Ne2 {[%clk 0:00:04]} 28... Nxe2 {[%clk 0:00:08.2]}
29. Rdxe2 {[%clk 0:00:04.5]} 29... Qd4+ {[%clk 0:00:04.4]} 30. Qb2 {[%clk
0:00:04.1]} 30... Qxb2+ {[%clk 0:00:01.3]} 31. Kxb2 {[%clk 0:00:05]} 31... e5
{[%clk 0:00:01.4]} 32. Rd2 {[%clk 0:00:04.3]} 32... Ra8 {[%clk 0:00:02]} 33. a3
{[%clk 0:00:02.5]} 33... Ra6 {[%clk 0:00:02]} 34. Red1 {[%clk 0:00:03.2]} 34...
d5 {[%clk 0:00:01.7]} 35. Re2 {[%clk 0:00:03.2]} 35... e4 {[%clk 0:00:01.8]} 36.
fxe4 {[%clk 0:00:03.4]} 36... dxe4 {[%clk 0:00:02.4]} 37. Rxe4 {[%clk
0:00:03.7]} 37... Rb6+ {[%clk 0:00:03]} 38. Ka1 {[%clk 0:00:03.7]} 38... Rb3
{[%clk 0:00:02.7]} 39. Rd8+ {[%clk 0:00:04.4]} 39... Kg7 {[%clk 0:00:02.7]} 40.
Ra4 {[%clk 0:00:03.8]} 40... Rg3 {[%clk 0:00:01]} 41. Rd7 {[%clk 0:00:02.9]}
41... Rg1+ {[%clk 0:00:01.9]} 42. Kb2 {[%clk 0:00:02.2]} 42... Kf6 {[%clk
0:00:02.3]} 43. Ra6+ {[%clk 0:00:02]} 43... Be6 {[%clk 0:00:02.6]} 44. Rdd6
{[%clk 0:00:01.6]} 44... Re1 {[%clk 0:00:02.5]} 45. Kc3 {[%clk 0:00:02.2]} 45...
Re3+ {[%clk 0:00:02.6]} 46. Kd4 {[%clk 0:00:02.5]} 46... Re5 {[%clk 0:00:02.4]}
47. Rxe6+ {[%clk 0:00:02.8]} 47... Rxe6 {[%clk 0:00:02.9]} 48. g5+ {[%clk
0:00:03]} 48... Kf5 {[%clk 0:00:02.8]} 49. Rxe6 {[%clk 0:00:03.7]} 49... Kxe6
{[%clk 0:00:03.7]} 50. Ke4 {[%clk 0:00:03.6]} 50... Kd6 {[%clk 0:00:03.8]} 51.
a4 {[%clk 0:00:04.5]} 51... Kc5 {[%clk 0:00:04]} 52. Ke5 {[%clk 0:00:05.4]}
52... Kb4 {[%clk 0:00:03.3]} 53. Kf6 {[%clk 0:00:05.9]} 53... Kxa4 {[%clk
0:00:03.1]} 54. Kg7 {[%clk 0:00:05.9]} 54... h5 {[%clk 0:00:03.2]} 55. gxh6
{[%clk 0:00:06.1]} 55... g5 {[%clk 0:00:03.6]} 56. h7 {[%clk 0:00:06.8]} 56...
g4 {[%clk 0:00:03.6]} 57. h8=Q {[%clk 0:00:07.7]} 57... g3 {[%clk 0:00:04.5]}
58. Qh3 {[%clk 0:00:08]} 1-0

[Event "Early-Titled-Tuesday-Blitz-July-09-2024"]
[Site "Chess.com"]
[Date "2024.07.09"]
[Round "8"]
[White "Nemegejas"]
[Black "Jospem"]
[Result "1-0"]
[WhiteElo "2961"]
[BlackElo "3102"]
[TimeControl "180+1"]
[EndTime "9:30:30 PDT"]
[Termination "Nemegejas won by checkmate"]

1. Nf3 {[%clk 0:03:00]} 1... c5 {[%clk 0:03:00]} 2. c4 {[%clk 0:02:52.3]} 2...
Nc6 {[%clk 0:02:58]} 3. Nc3 {[%clk 0:02:51.3]} 3... g6 {[%clk 0:02:58.1]} 4. e3
{[%clk 0:02:51]} 4... Bg7 {[%clk 0:02:58.8]} 5. d4 {[%clk 0:02:51.4]} 5... d6
{[%clk 0:02:59.7]} 6. h3 {[%clk 0:02:42.8]} 6... Nh6 {[%clk 0:02:52.4]} 7. d5
{[%clk 0:02:39.8]} 7... Nb4 {[%clk 0:02:31.8]} 8. a3 {[%clk 0:02:37.5]} 8... Na6
{[%clk 0:02:32.2]} 9. e4 {[%clk 0:02:36.9]} 9... O-O {[%clk 0:02:21.7]} 10. Bd3
{[%clk 0:02:28.3]} 10... e5 {[%clk 0:02:19.9]} 11. g4 {[%clk 0:02:22.2]} 11...
f6 {[%clk 0:02:20.3]} 12. Be3 {[%clk 0:02:17.3]} 12... Nf7 {[%clk 0:02:20.6]}
13. Rg1 {[%clk 0:02:15.7]} 13... Ng5 {[%clk 0:01:56.6]} 14. Nxg5 {[%clk
0:01:46.1]} 14... fxg5 {[%clk 0:01:57.5]} 15. Qd2 {[%clk 0:01:46.7]} 15... h6
{[%clk 0:01:56.6]} 16. O-O-O {[%clk 0:01:38.5]} 16... Bd7 {[%clk 0:01:53.7]} 17.
Rh1 {[%clk 0:01:31.4]} 17... Qf6 {[%clk 0:01:37.8]} 18. Rdg1 {[%clk 0:01:30.8]}
18... Qe7 {[%clk 0:01:32.7]} 19. Nd1 {[%clk 0:01:05.3]} 19... Nc7 {[%clk
0:01:21.2]} 20. h4 {[%clk 0:01:04.8]} 20... Bf6 {[%clk 0:00:43.6]} 21. hxg5
{[%clk 0:01:00.1]} 21... Bxg5 {[%clk 0:00:44.5]} 22. Bxg5 {[%clk 0:01:00.4]}
22... hxg5 {[%clk 0:00:39.7]} 23. Ne3 {[%clk 0:00:48.1]} 23... Rf4 {[%clk
0:00:34.6]} 24. Rh6 {[%clk 0:00:47]} 24... Qg7 {[%clk 0:00:24.1]} 25. Rgh1
{[%clk 0:00:37.4]} 25... Ne8 {[%clk 0:00:24.6]} 26. f3 {[%clk 0:00:27.8]} 26...
Nf6 {[%clk 0:00:21.5]} 27. Qh2 {[%clk 0:00:28]} 27... Kf7 {[%clk 0:00:20.5]} 28.
Be2 {[%clk 0:00:28]} 28... Rg8 {[%clk 0:00:13.4]} 29. Ng2 {[%clk 0:00:28]} 29...
Ke7 {[%clk 0:00:12.4]} 30. Nxf4 {[%clk 0:00:28.1]} 30... gxf4 {[%clk 0:00:13.3]}
31. Qh4 {[%clk 0:00:20.6]} 31... g5 {[%clk 0:00:13.1]} 32. Qe1 {[%clk
0:00:21.1]} 32... b6 {[%clk 0:00:12.2]} 33. Bd1 {[%clk 0:00:18.5]} 33... Kd8
{[%clk 0:00:12]} 34. Bc2 {[%clk 0:00:19.1]} 34... Kc7 {[%clk 0:00:12]} 35. Qd1
{[%clk 0:00:19.8]} 35... a6 {[%clk 0:00:11.6]} 36. Ba4 {[%clk 0:00:18.7]} 36...
b5 {[%clk 0:00:12.2]} 37. Bc2 {[%clk 0:00:19.1]} 37... Kb6 {[%clk 0:00:12.6]}
38. b4 {[%clk 0:00:17.6]} 38... Rc8 {[%clk 0:00:12.9]} 39. Qg1 {[%clk
0:00:13.8]} 39... Qe7 {[%clk 0:00:12.5]} 40. Rg6 {[%clk 0:00:12.8]} 40... Be8
{[%clk 0:00:13.1]} 41. Rgh6 {[%clk 0:00:08.8]} 41... Kb7 {[%clk 0:00:11.4]} 42.
Kb2 {[%clk 0:00:06.6]} 42... cxb4 {[%clk 0:00:10.3]} 43. axb4 {[%clk 0:00:07.5]}
43... Rxc4 {[%clk 0:00:09.9]} 44. Qe1 {[%clk 0:00:05]} 44... Rc8 {[%clk
0:00:08.8]} 45. Bd3 {[%clk 0:00:05.2]} 45... Qd8 {[%clk 0:00:08.2]} 46. Qf2
{[%clk 0:00:04.4]} 46... Nd7 {[%clk 0:00:08.8]} 47. Rxd6 {[%clk 0:00:03.8]}
47... Qe7 {[%clk 0:00:08.3]} 48. Rhh6 {[%clk 0:00:04.1]} 48... Rc7 {[%clk
0:00:08]} 49. Rxa6 {[%clk 0:00:04.5]} 49... Qxb4+ {[%clk 0:00:08.1]} 50. Ka2
{[%clk 0:00:04.5]} 50... Nc5 {[%clk 0:00:07.1]} 51. Rhb6+ {[%clk 0:00:03.1]}
51... Kc8 {[%clk 0:00:07.8]} 52. Ra8+ {[%clk 0:00:03.3]} 52... Kd7 {[%clk
0:00:08.5]} 53. Bxb5+ {[%clk 0:00:04]} 53... Ke7 {[%clk 0:00:07.9]} 54. d6+
{[%clk 0:00:04.5]} 54... Kf7 {[%clk 0:00:07]} 55. Bxe8+ {[%clk 0:00:04.1]} 55...
Kg7 {[%clk 0:00:07]} 56. Rxb4 {[%clk 0:00:05]} 56... Ra7+ {[%clk 0:00:05.5]} 57.
Rxa7+ {[%clk 0:00:04.8]} 57... Nd7 {[%clk 0:00:06.4]} 58. Rxd7+ {[%clk
0:00:03.7]} 58... Kf6 {[%clk 0:00:07.3]} 59. Rf7+ {[%clk 0:00:03.4]} 59... Ke6
{[%clk 0:00:07.1]} 60. d7 {[%clk 0:00:03.7]} 60... Kd6 {[%clk 0:00:06.6]} 61.
Qb6# {[%clk 0:00:04.3]} 1-0

[Event "Early-Titled-Tuesday-Blitz-July-09-2024"]
[Site "Chess.com"]
[Date "2024.07.09"]
[Round "8"]
[White "Lady_Nika"]
[Black "PapaieDudu"]
[Result "1-0"]
[WhiteElo "2523"]
[BlackElo "2395"]
[TimeControl "180+1"]
[EndTime "9:30:34 PDT"]
[Termination "Lady_Nika won by checkmate"]

1. d4 {[%clk 0:02:58.5]} 1... d5 {[%clk 0:03:00.1]} 2. e3 {[%clk 0:02:57.8]}
2... Nf6 {[%clk 0:02:59.9]} 3. f4 {[%clk 0:02:58.1]} 3... c5 {[%clk 0:02:58.7]}
4. Nf3 {[%clk 0:02:55.6]} 4... cxd4 {[%clk 0:02:58.4]} 5. exd4 {[%clk
0:02:53.8]} 5... Bg4 {[%clk 0:02:58.9]} 6. Be2 {[%clk 0:02:50.5]} 6... Nc6
{[%clk 0:02:57.7]} 7. c3 {[%clk 0:02:50.3]} 7... Bxf3 {[%clk 0:02:55]} 8. Bxf3
{[%clk 0:02:50.3]} 8... e6 {[%clk 0:02:55.5]} 9. Qe2 {[%clk 0:02:50.4]} 9... Be7
{[%clk 0:02:55.1]} 10. O-O {[%clk 0:02:50.8]} 10... O-O {[%clk 0:02:55.3]} 11.
g4 {[%clk 0:02:47.4]} 11... Rc8 {[%clk 0:02:53.8]} 12. g5 {[%clk 0:02:47.6]}
12... Nd7 {[%clk 0:02:53.8]} 13. Nd2 {[%clk 0:02:47.9]} 13... Re8 {[%clk
0:02:53.7]} 14. Re1 {[%clk 0:02:45]} 14... Nf8 {[%clk 0:02:50.2]} 15. h4 {[%clk
0:02:44.9]} 15... Ng6 {[%clk 0:02:50.4]} 16. Qh2 {[%clk 0:02:42.3]} 16... Bd6
{[%clk 0:02:49.2]} 17. Nf1 {[%clk 0:02:39.7]} 17... f5 {[%clk 0:02:39.8]} 18. h5
{[%clk 0:02:32.3]} 18... Nf8 {[%clk 0:02:40.1]} 19. Be3 {[%clk 0:02:27.5]} 19...
b5 {[%clk 0:02:37.5]} 20. a3 {[%clk 0:02:27.1]} 20... a5 {[%clk 0:02:36.7]} 21.
Be2 {[%clk 0:02:25.4]} 21... b4 {[%clk 0:02:35.7]} 22. axb4 {[%clk 0:02:25.1]}
22... axb4 {[%clk 0:02:35.8]} 23. h6 {[%clk 0:01:24.5]} 23... g6 {[%clk
0:02:32.2]} 24. Ba6 {[%clk 0:00:31.5]} 24... Rb8 {[%clk 0:02:30.1]} 25. Qe2
{[%clk 0:00:22.4]} 25... Re7 {[%clk 0:02:16.2]} 26. c4 {[%clk 0:00:20.8]} 26...
dxc4 {[%clk 0:02:13.6]} 27. Bxc4 {[%clk 0:00:20.2]} 27... Na5 {[%clk 0:01:52]}
28. b3 {[%clk 0:00:15.8]} 28... Bc7 {[%clk 0:01:27.6]} 29. Rad1 {[%clk
0:00:13.4]} 29... Rc8 {[%clk 0:01:17.7]} 30. Nh2 {[%clk 0:00:12.3]} 30... Nxc4
{[%clk 0:01:09.3]} 31. bxc4 {[%clk 0:00:12.2]} 31... Nd7 {[%clk 0:01:08.6]} 32.
Nf3 {[%clk 0:00:12.3]} 32... Nb6 {[%clk 0:01:07.2]} 33. Rc1 {[%clk 0:00:06.8]}
33... Na4 {[%clk 0:00:56.8]} 34. Bd2 {[%clk 0:00:06.5]} 34... Nc3 {[%clk
0:00:51.9]} 35. Bxc3 {[%clk 0:00:06.6]} 35... bxc3 {[%clk 0:00:52]} 36. Rxc3
{[%clk 0:00:07.1]} 36... Bxf4 {[%clk 0:00:52.1]} 37. d5 {[%clk 0:00:07.5]} 37...
e5 {[%clk 0:00:49.1]} 38. Qa2 {[%clk 0:00:07.4]} 38... e4 {[%clk 0:00:42.5]} 39.
c5 {[%clk 0:00:05.7]} 39... exf3 {[%clk 0:00:40.7]} 40. Rxe7 {[%clk 0:00:05.6]}
40... Qxe7 {[%clk 0:00:34]} 41. d6+ {[%clk 0:00:06]} 41... Qf7 {[%clk
0:00:34.1]} 42. Qa6 {[%clk 0:00:06.4]} 42... Rd8 {[%clk 0:00:24.2]} 43. Rxf3
{[%clk 0:00:06.8]} 43... Bxg5 {[%clk 0:00:21]} 44. Rd3 {[%clk 0:00:05.1]} 44...
Bxh6 {[%clk 0:00:13.9]} 45. c6 {[%clk 0:00:05.3]} 45... Bf4 {[%clk 0:00:13.3]}
46. c7 {[%clk 0:00:05.4]} 46... Qd7 {[%clk 0:00:01.5]} 47. cxd8=Q+ {[%clk
0:00:05.4]} 47... Qxd8 {[%clk 0:00:01.7]} 48. d7 {[%clk 0:00:05.9]} 48... Kg7
{[%clk 0:00:02.1]} 49. Qa1+ {[%clk 0:00:05.2]} 49... Kh6 {[%clk 0:00:01.9]} 50.
Qd4 {[%clk 0:00:04.8]} 50... Bg5 {[%clk 0:00:02]} 51. Rh3+ {[%clk 0:00:04.7]}
51... Bh4 {[%clk 0:00:01.6]} 52. Qxh4+ {[%clk 0:00:05.3]} 52... Qxh4 {[%clk
0:00:02]} 53. Rxh4+ {[%clk 0:00:06.2]} 53... Kg5 {[%clk 0:00:02.6]} 54. d8=Q#
{[%clk 0:00:07.1]} 1-0